bitfinex/quotes_ETHUSD_20250115
["timestamp","ask_amount","ask_price","bid_price","bid_amount"]
[1736940355357,0.03913346,3194.4,3193.5,0.2984]
[1736940358267,2.98834985,3194.5,3193.5,0.2984]
[1736940358450,3.91209813,3194.4,3193.5,0.2984]
[1736940359220,3.53834985,3194.2,3193.5,0.2984]
[1736940359523,0.55,3193.8,3193.5,0.2984]
[1736940359650,0.58914064,3193.8,3193.5,0.2984]
[1736940359853,0.55,3193.8,3193.5,0.2984]
[1736940360050,0.90383499,3193.8,3193.5,0.2984]
[1736940360789,3.0,3194.1,3193.5,0.2984]
[1736940361320,3.36209813,3194.4,3193.5,0.2984]
[1736940361530,0.55,3194.3,3193.5,0.2984]
[1736940362021,0.55,3194.1,3193.5,0.2984]
[1736940362158,0.55,3193.9,3193.5,0.2984]
[1736940362811,0.55,3194.0,3193.5,0.2984]
[1736940363082,0.355,3193.9,3193.5,0.2984]
[1736940363310,0.55,3193.7,3193.5,0.2984]
[1736940363461,0.55,3193.7,3193.2,0.2984]
[1736940363655,0.355,3193.9,3193.2,0.2984]
[1736940363965,0.55,3193.7,3193.2,0.2984]
[1736940364887,0.355,3193.9,3193.2,0.2984]
[1736940366442,0.55,3193.8,3193.2,0.2984]
[1736940366641,0.38933498,3193.7,3193.2,0.2984]
[1736940367339,3.55,3193.8,3193.2,0.2984]
[1736940367506,0.55,3193.8,3193.2,0.2984]
[1736940367708,3.0,3194.1,3193.2,0.2984]
[1736940367906,2.98834985,3194.5,3193.2,0.2984]
[1736940368428,3.0,3194.4,3193.2,0.2984]
[1736940369116,0.55,3194.3,3193.2,0.2984]
[1736940369319,3.0,3194.4,3193.2,0.2984]
[1736940369518,0.55,3194.3,3193.2,0.2984]
[1736940369750,0.55,3194.3,3193.3,0.2984]
[1736940370360,0.58913182,3194.3,3193.3,0.2984]
[1736940370564,0.55,3194.3,3193.3,0.2984]
[1736940370854,0.55,3194.1,3193.3,0.2984]
[1736940371257,2.98834985,3194.5,3193.3,0.2984]
[1736940371408,3.36873484,3194.5,3193.3,0.2984]
[1736940371810,0.55,3194.4,3193.3,0.2984]
[1736940372333,3.55,3194.4,3193.3,0.2984]
[1736940372927,0.55,3194.4,3193.3,0.2984]
[1736940373164,0.83362701,3197.6,3193.3,0.2984]
[1736940373165,2.98834985,3194.8,3193.3,0.2984]
[1736940373312,2.98834985,3194.8,3193.4,0.2984]
[1736940373513,3.55,3194.7,3193.4,0.2984]
[1736940374166,0.42110162,3195.2,3193.6,0.2984]
[1736940374338,2.98834985,3195.1,3193.6,0.2984]
[1736940374743,3.0,3195.0,3193.6,0.2984]
[1736940375071,2.98834985,3195.1,3193.6,0.2984]
[1736940375072,0.55,3194.9,3193.7,0.2984]
[1736940375264,0.55,3195.0,3193.7,0.2984]
[1736940375560,3.55,3195.0,3193.7,0.2984]
[1736940376663,3.58912522,3195.0,3193.9,0.2984]
[1736940377589,2.98834985,3194.9,3193.9,0.2984]
[1736940377794,3.58912524,3194.8,3193.9,0.2984]
[1736940378086,3.58535845,3194.8,3193.9,0.2984]
[1736940379833,3.54623122,3194.8,3193.9,0.2984]
[1736940380233,0.55,3194.5,3193.9,0.2984]
[1736940380432,0.58912924,3194.5,3193.9,0.2984]
[1736940380852,0.55,3194.5,3193.9,0.2984]
[1736940382009,0.65345811,3194.8,3193.9,0.2984]
[1736940382451,2.98834985,3194.6,3193.9,0.2984]
[1736940382650,0.58912912,3194.5,3193.9,0.2984]
[1736940382904,0.55,3194.5,3193.9,0.2984]
[1736940383203,0.58913158,3194.5,3193.9,0.2984]
[1736940383718,0.58913195,3194.5,3193.9,0.2984]
[1736940385291,0.58913196,3194.5,3193.9,0.2984]
[1736940385464,0.9836895,3194.5,3193.9,0.2984]
[1736940385875,2.98834985,3194.2,3193.1,2.92624844]
[1736940386093,2.98834985,3193.8,3193.1,2.92624844]
[1736940386406,0.55,3193.7,3193.1,2.92624844]
[1736940386608,0.55,3193.7,3193.1,0.3034]
[1736940387273,0.90383499,3193.7,3193.1,0.3034]
[1736940387663,0.55,3193.5,3193.1,0.3034]
[1736940387973,0.03914291,3193.7,3193.1,0.3034]
[1736940388177,1.21005754,3194.5,3193.1,0.3034]
[1736940388503,2.98834985,3194.3,3193.1,0.3034]
[1736940389097,2.98834985,3194.3,3193.2,0.2984]
[1736940390522,0.55,3194.2,3193.2,0.2984]
[1736940393892,2.98834985,3194.3,3193.2,0.2984]
[1736940394320,3.55,3194.5,3193.2,0.2984]
[1736940394629,3.58913192,3194.5,3193.3,0.2984]
[1736940395116,3.55,3194.5,3193.4,0.2984]
[1736940396001,0.184,3195.1,3193.4,0.2984]
[1736940396209,0.55,3194.6,3193.5,0.2984]
[1736940396614,0.55,3194.6,3193.7,0.2984]
[1736940399443,0.44098683,3195.2,3193.8,0.2984]
[1736940399661,2.98834985,3195.7,3194.1,0.2984]
[1736940400241,2.98834985,3195.7,3194.4,0.2984]
[1736940400449,2.98834985,3195.7,3194.5,0.2984]
[1736940400792,0.6140004,3195.9,3194.6,0.2984]
[1736940401004,2.98834985,3196.0,3194.8,0.2984]
[1736940401296,3.61765948,3196.0,3194.8,0.2984]
[1736940401929,2.98834985,3196.0,3194.8,0.2984]
[1736940402336,2.98834985,3196.3,3194.8,0.2984]
[1736940402712,0.55,3196.2,3194.8,0.2984]
[1736940403545,1.16393766,3196.2,3194.8,0.2984]
[1736940404530,0.55,3196.2,3194.8,0.2984]
[1736940406431,3.55,3196.2,3194.8,0.2984]
[1736940406628,0.55,3196.2,3194.8,0.2984]
[1736940406835,0.61262876,3196.4,3195.0,0.2984]
[1736940407442,0.61262876,3196.4,3195.1,3.53674985]
[1736940407663,0.61262876,3196.4,3195.3,0.2984]
[1736940407818,2.98834985,3196.9,3195.5,0.2984]
[1736940408534,3.0,3196.8,3195.5,0.2984]
[1736940408713,2.98834985,3196.9,3195.5,0.2984]
[1736940408911,2.98834985,3197.1,3195.6,0.2984]
[1736940409288,2.98834985,3197.1,3195.5,3.25]
[1736940409289,3.0,3197.3,3195.7,0.2984]
[1736940409423,2.98834985,3197.4,3195.9,0.2984]
[1736940409764,3.0,3197.3,3195.9,0.2984]
[1736940409970,0.03909577,3197.6,3195.9,0.2984]
[1736940410177,3.61496041,3197.4,3195.9,0.2984]
[1736940410316,3.0,3197.3,3196.0,0.2984]
[1736940410816,3.61496041,3197.4,3196.0,0.2984]
[1736940411066,0.55,3197.3,3196.0,0.2984]
[1736940411410,3.61496041,3197.4,3196.0,0.25]
[1736940411632,3.61496041,3197.4,3196.1,0.2984]
[1736940412030,0.62661056,3197.4,3196.2,0.2984]
[1736940412246,0.55,3197.6,3196.4,0.2984]
[1736940414022,2.98834985,3197.1,3196.4,0.2984]
[1736940414229,0.55,3196.7,3196.4,0.2984]
[1736940414431,0.55,3196.3,3195.6,0.2984]
[1736940414634,2.98834985,3196.1,3195.6,0.2984]
[1736940414880,0.55,3196.0,3195.6,0.2984]
[1736940415177,2.98834985,3195.8,3195.6,0.2984]
[1736940417075,2.98834985,3196.1,3195.6,0.2984]
[1736940419484,2.98834985,3196.4,3195.6,0.2984]
[1736940420888,2.98834985,3196.1,3195.6,0.2984]
[1736940421041,0.55,3196.3,3194.6,5.62284844]
[1736940421042,2.98834985,3195.8,3194.7,0.2984]
[1736940421431,0.55,3195.7,3194.7,0.2984]
[1736940421622,2.98834985,3195.5,3194.7,0.2984]
[1736940422045,2.98834985,3195.2,3194.7,0.2984]
[1736940422246,2.98834985,3194.9,3194.4,0.2984]
[1736940422644,0.5891217,3195.1,3194.0,0.2984]
[1736940422645,0.55,3194.5,3194.0,0.2984]
[1736940422867,2.98834985,3194.3,3194.0,0.2984]
[1736940425033,0.3266,3193.7,3193.4,0.185]
[1736940425944,0.3266,3193.7,3193.5,0.25]
[1736940426721,0.3266,3193.7,3193.5,0.5]
[1736940426927,0.3266,3193.7,3193.5,0.65375398]
[1736940430521,3.62045594,3195.3,3193.8,0.25]
[1736940430721,3.62045594,3195.6,3194.0,0.25]
[1736940430923,3.62045594,3195.6,3194.2,0.25]
[1736940431244,3.62045594,3195.6,3194.3,0.185]
[1736940432406,3.62045594,3195.9,3194.3,0.435]
[1736940435005,0.61270958,3196.1,3194.5,0.25]
[1736940435205,3.62045594,3196.2,3194.5,0.25]
[1736940436043,3.62045594,3196.2,3194.6,0.25]
[1736940436251,3.62045594,3196.2,3194.8,0.25]
[1736940437019,3.62045594,3196.2,3194.6,3.25]
[1736940437235,3.62045594,3196.2,3194.8,0.25]
[1736940438119,3.62045594,3196.2,3194.6,3.25]
[1736940438320,3.62045594,3196.2,3194.8,0.25]
[1736940439505,3.62045594,3196.2,3194.6,5.62284844]
[1736940439744,3.62045594,3196.2,3194.8,0.25]
[1736940440915,1.40623926,3196.4,3194.6,5.62284844]
[1736940440916,0.8245,3195.8,3194.6,5.62284844]
[1736940441117,0.8245,3195.8,3194.4,3.25337499]
[1736940441118,0.8245,3195.8,3194.7,0.185]
[1736940443219,0.8245,3195.8,3194.3,3.0]
[1736940443416,0.8245,3195.8,3194.4,0.185]
[1736940444123,0.86361381,3195.8,3194.4,0.185]
[1736940444330,0.44840698,3195.7,3194.4,0.185]
[1736940444719,0.44840698,3195.7,3194.5,0.185]
[1736940444919,1.07502933,3195.7,3194.5,0.185]
[1736940445353,4.06071734,3195.7,3194.5,0.185]
[1736940445717,0.44840698,3195.7,3194.5,0.185]
[1736940446059,0.8245,3195.8,3194.5,0.185]
[1736940446722,0.8245,3195.8,3194.5,2.80784844]
[1736940447759,0.8245,3195.8,3194.5,0.185]
[1736940449040,0.8245,3195.6,3194.5,0.185]
[1736940449558,0.8245,3195.6,3194.6,0.185]
[1736940451174,1.18998694,3196.1,3194.6,0.435]
[1736940451175,0.8245,3196.0,3194.6,0.435]
[1736940451920,0.8245,3196.0,3194.9,2.62284844]
[1736940452148,0.8245,3196.0,3194.9,3.0]
[1736940455464,0.8245,3196.0,3194.8,3.0]
[1736940456382,0.8245,3196.0,3194.8,5.62284844]
[1736940456722,0.8245,3196.0,3194.9,2.62284844]
[1736940456966,0.8245,3196.0,3194.8,2.62284844]
[1736940457565,0.8245,3196.0,3194.9,2.62284844]
[1736940459065,0.8245,3196.0,3194.8,2.62284844]
[1736940459962,0.8245,3196.0,3194.9,0.185]
[1736940460168,0.8245,3196.0,3194.9,2.80784844]
[1736940460584,0.8245,3196.0,3195.0,3.0]
[1736940461252,0.8245,3196.0,3195.2,2.62284844]
[1736940462090,0.8245,3196.0,3195.3,2.62284844]
[1736940465173,0.8245,3196.0,3195.2,3.0]
[1736940465666,0.7521,3195.9,3195.1,2.62284844]
[1736940466499,0.8017,3195.6,3194.8,0.185]
[1736940466858,0.8017,3195.6,3194.9,3.0]
[1736940467478,0.8017,3195.6,3194.9,5.62284844]
[1736940468072,0.8017,3195.6,3195.0,2.62284844]
[1736940468514,0.8017,3195.6,3195.1,2.62284844]
[1736940468993,0.8017,3196.2,3195.1,2.62284844]
[1736940469495,0.8017,3196.2,3195.2,2.62284844]
[1736940470970,0.8017,3196.2,3195.4,2.62284844]
[1736940472297,0.8017,3196.2,3195.5,2.62284844]
[1736940472662,0.8017,3196.2,3195.6,2.62284844]
[1736940473171,0.8017,3196.2,3194.9,3.0]
[1736940473172,0.8017,3196.2,3195.3,2.62284844]
[1736940473357,0.8017,3196.2,3195.4,2.62284844]
[1736940473959,0.8017,3196.2,3195.4,2.80784844]
[1736940474660,0.8017,3196.2,3195.4,0.185]
[1736940474960,0.8017,3196.2,3195.4,2.80784844]
[1736940476101,0.8017,3196.2,3195.6,2.98568801]
[1736940476414,0.8079,3196.5,3195.8,2.62284844]
[1736940476558,0.8079,3196.5,3195.9,5.98568801]
[1736940476758,0.8079,3197.2,3195.9,5.98568801]
[1736940477000,0.8079,3197.2,3196.4,2.62284844]
[1736940477158,0.8079,3197.2,3196.5,2.80784844]
[1736940479574,0.8079,3197.2,3196.6,2.62284844]
[1736940479959,0.8079,3197.2,3196.5,0.185]
[1736940480363,0.8079,3197.2,3196.5,2.80784844]
[1736940480582,0.8079,3197.2,3196.5,0.185]
[1736940482564,0.8079,3197.2,3196.5,3.185]
[1736940482993,0.8079,3197.2,3196.5,3.0]
[1736940483189,0.8079,3197.2,3196.6,0.184]
[1736940488702,0.8079,3197.2,3196.6,3.16968801]
[1736940491115,0.8079,3197.2,3196.6,3.184]
[1736940491280,0.8079,3197.2,3196.5,3.0]
[1736940491480,0.8079,3197.2,3196.6,0.184]
[1736940495137,0.8079,3197.2,3196.6,3.16968801]
[1736940495310,0.8079,3197.2,3196.6,0.184]
[1736940496113,0.8079,3197.2,3196.4,2.62284844]
[1736940496312,0.8079,3197.2,3196.5,0.184]
[1736940496895,0.8079,3197.2,3196.2,2.62284844]
[1736940497095,0.8079,3197.2,3196.1,2.80684844]
[1736940497600,0.8079,3197.2,3196.1,0.184]
[1736940498621,0.8077,3197.0,3196.1,0.184]
[1736940499223,0.84680146,3197.0,3196.1,0.184]
[1736940499424,0.8077,3197.0,3196.1,0.184]
[1736940500304,0.8077,3197.0,3195.7,3.0]
[1736940500503,0.8077,3197.0,3195.8,0.184]
[1736940500916,0.8077,3197.0,3195.9,0.184]
[1736940501115,0.8077,3197.0,3195.7,3.0]
[1736940501116,0.8077,3197.0,3196.0,0.184]
[1736940501745,0.8077,3197.0,3195.7,5.62284844]
[1736940501959,0.8077,3197.0,3195.9,0.184]
[1736940503658,0.8077,3197.0,3196.0,3.0]
[1736940504062,0.8077,3197.0,3196.0,5.62284844]
[1736940505567,0.8077,3197.0,3196.1,2.62284844]
[1736940507346,0.8077,3197.0,3196.1,0.184]
[1736940509767,0.8077,3197.0,3195.9,5.62284844]
[1736940509964,0.8077,3197.0,3196.0,0.184]
[1736940510544,0.84680081,3197.0,3196.0,0.184]
[1736940510775,0.8077,3196.9,3195.9,2.62284844]
[1736940511082,0.8077,3196.3,3195.9,2.62284844]
[1736940511253,0.8077,3196.0,3195.8,2.62284844]
[1736940511443,0.8077,3195.9,3195.8,1.78954844]
[1736940511650,1.3577,3195.9,3195.8,1.78954844]
[1736940511879,1.3577,3195.8,3194.8,3.25337499]
[1736940512054,0.84681727,3195.7,3194.8,3.25337499]
[1736940512450,0.8077,3195.7,3194.7,0.183]
[1736940514177,0.8077,3195.7,3194.6,3.25337499]
[1736940514378,0.8077,3195.7,3194.7,0.183]
[1736940514592,0.8077,3195.7,3194.7,3.16868801]
[1736940515089,0.8077,3195.7,3194.8,3.25337499]
[1736940515758,0.8077,3195.7,3194.7,6.422063]
[1736940515955,0.8077,3195.7,3194.7,3.43637499]
[1736940516375,0.8077,3195.7,3194.7,3.183]
[1736940517151,0.8077,3195.7,3194.7,3.033]
[1736940517697,0.8077,3195.7,3194.8,0.763]
[1736940518224,0.8077,3195.7,3194.9,3.43637499]
[1736940518402,0.8077,3195.7,3194.9,3.25337499]
[1736940518550,0.8077,3195.7,3194.6,6.43637499]
[1736940518890,0.8077,3195.7,3194.6,3.183]
[1736940519588,0.8077,3195.7,3194.6,5.80144623]
[1736940520257,0.8077,3195.7,3194.6,3.183]
[1736940520789,0.73956577,3195.7,3194.7,5.98568801]
[1736940521090,0.73956577,3195.7,3194.8,0.946]
[1736940521259,0.73956577,3195.7,3194.9,3.0]
[1736940521796,0.73956577,3195.7,3194.9,5.61844623]
[1736940522096,0.73579958,3195.7,3194.9,5.61844623]
[1736940522690,0.73579958,3195.7,3194.9,3.0]
[1736940523178,0.73579958,3195.7,3194.9,5.61844623]
[1736940524089,0.73579958,3195.7,3194.9,3.0]
[1736940525055,0.73579958,3195.7,3194.9,5.61844623]
[1736940525950,0.73579958,3195.7,3195.1,3.0]
[1736940526154,0.73579958,3195.7,3195.1,5.61844623]
[1736940526900,0.73579958,3195.7,3195.3,3.0]
[1736940527492,0.8037,3197.1,3195.4,0.763]
[1736940527785,0.8037,3197.0,3195.5,3.0]
[1736940527985,0.8037,3197.0,3195.5,5.61844623]
[1736940528365,0.8037,3197.0,3195.7,2.61844623]
[1736940528570,0.8037,3197.0,3195.8,0.183]
[1736940528763,0.8037,3197.0,3195.8,3.183]
[1736940529164,0.8037,3197.0,3195.8,0.183]
[1736940529492,0.8037,3197.0,3195.8,2.80144623]
[1736940530666,0.8037,3197.0,3196.0,3.0]
[1736940532683,0.8037,3197.0,3195.8,2.80144623]
[1736940535619,0.8037,3197.0,3195.9,2.61844623]
[1736940535824,0.8037,3197.0,3196.0,3.0]
[1736940537186,0.7853,3196.8,3195.8,2.61844623]
[1736940537534,0.7853,3196.8,3195.8,2.80144623]
[1736940537817,0.7853,3196.8,3195.8,0.183]
[1736940538015,0.79760369,3196.7,3195.8,0.183]
[1736940538880,0.55,3196.4,3195.5,9.053]
[1736940539089,0.7585,3196.3,3195.5,0.183]
[1736940539382,0.7585,3196.3,3195.5,3.183]
[1736940540989,0.7585,3196.3,3195.6,2.61844623]
[1736940541183,0.7585,3196.3,3195.5,3.183]
[1736940541184,0.7585,3196.3,3195.5,5.80144623]
[1736940542128,0.7585,3196.3,3195.5,6.59264623]
[1736940542607,0.7585,3196.3,3195.6,0.184]
[1736940542918,0.7585,3196.3,3195.7,2.61844623]
[1736940543218,0.7585,3196.3,3195.8,2.61844623]
[1736940545228,0.7585,3196.3,3195.7,2.61844623]
[1736940545910,0.7585,3196.3,3195.6,0.184]
[1736940549333,0.7585,3196.3,3195.6,2.80244623]
[1736940552637,0.8024,3196.2,3195.6,2.61844623]
[1736940552805,0.84151035,3196.2,3195.6,2.61844623]
[1736940553226,0.84151035,3196.2,3195.3,2.61844623]
[1736940553533,0.8024,3196.0,3195.3,2.61844623]
[1736940553735,0.8024,3195.8,3195.2,2.61844623]
[1736940553894,0.84151641,3195.8,3195.2,2.61844623]
[1736940554334,0.8024,3195.6,3194.9,2.61844623]
[1736940554534,0.8024,3195.3,3194.9,2.61844623]
[1736940554742,0.84152187,3195.3,3194.9,2.61844623]
[1736940554898,0.84152187,3195.3,3194.6,2.61844623]
[1736940555100,0.8024,3195.1,3194.6,2.61844623]
[1736940555599,0.8024,3195.1,3194.3,2.61844623]
[1736940556006,0.8024,3195.1,3194.2,2.61844623]
[1736940556211,0.03912432,3195.0,3194.2,2.61844623]
[1736940556392,2.98568801,3194.8,3194.2,2.61844623]
[1736940556602,0.8108,3194.7,3193.9,2.61844623]
[1736940556821,0.8108,3194.5,3193.9,2.61844623]
[1736940557552,0.8108,3194.5,3193.7,2.61844623]
[1736940558256,0.8108,3194.5,3193.5,0.184]
[1736940558765,0.8108,3194.5,3193.7,3.0]
[1736940559256,0.8108,3194.5,3193.8,0.184]
[1736940560147,0.8108,3194.5,3193.9,2.61844623]
[1736940560357,0.8108,3194.5,3194.0,3.0]
[1736940560996,0.8108,3195.3,3194.0,3.0]
[1736940561717,0.8108,3195.3,3194.0,5.61844623]
[1736940562853,0.8108,3195.3,3194.2,3.0]
[1736940563047,0.8108,3195.3,3194.3,0.8324]
[1736940563251,0.8108,3195.3,3194.5,3.0]
[1736940564352,0.8108,3195.3,3194.6,0.55]
[1736940564661,0.8108,3195.3,3194.7,3.184]
[1736940565080,0.8108,3195.3,3194.7,6.16968801]
[1736940567798,0.8108,3195.6,3194.8,1.3824]
[1736940569749,0.8108,3195.6,3194.7,5.61844623]
[1736940569976,0.8108,3195.6,3194.7,5.80244623]
[1736940570375,0.8108,3195.6,3194.7,3.184]
[1736940570888,0.8108,3195.6,3194.7,5.80244623]
[1736940572287,0.8108,3195.6,3194.7,3.184]
[1736940575657,0.8108,3195.6,3194.8,0.183]
[1736940575854,0.8108,3195.6,3195.0,3.0]
[1736940576796,0.8108,3195.6,3195.0,5.61844623]
[1736940576970,0.8108,3195.6,3195.3,3.0]
[1736940577172,0.8002,3196.0,3195.3,3.7531]
[1736940577795,0.8002,3196.0,3195.3,6.37154623]
[1736940578500,0.8002,3197.2,3195.6,11.87]
[1736940578716,0.8002,3196.8,3195.8,2.98568801]
[1736940578912,0.8002,3196.8,3196.1,2.98568801]
[1736940580179,0.8002,3196.8,3195.9,2.61844623]
[1736940580411,0.8002,3196.8,3195.9,0.183]
[1736940582818,0.8002,3196.8,3195.7,3.0]
[1736940583024,0.8002,3196.8,3195.9,0.183]
[1736940583350,0.8002,3196.8,3196.0,3.0]
[1736940583892,0.8002,3196.8,3196.2,3.0]
[1736940591849,0.8002,3196.8,3196.3,0.183]
[1736940595083,0.8002,3196.8,3196.4,0.183]
[1736940603622,0.63696302,3197.8,3196.7,2.98568801]
[1736940603623,0.7575,3197.7,3196.7,2.98568801]
[1736940605112,0.7575,3197.7,3197.0,2.98568801]
[1736940605284,0.7575,3197.7,3196.8,3.0]
[1736940605285,0.7575,3197.7,3197.3,2.98568801]
[1736940605484,0.7575,3197.7,3197.3,3.16668801]
[1736940606415,0.7575,3197.7,3197.3,0.181]
[1736940607099,0.7575,3197.7,3197.2,0.181]
[1736940608701,0.7575,3197.7,3197.4,3.0]
[1736940611521,0.7575,3197.9,3197.4,3.0]
[1736940613016,0.7575,3198.8,3197.7,3.0]
[1736940613308,0.7575,3198.8,3198.2,2.98568801]
[1736940613529,0.7575,3198.8,3198.3,3.181]
[1736940614023,0.7575,3198.8,3198.3,0.181]
[1736940615173,0.7575,3198.8,3198.1,2.79944623]
[1736940615463,0.7575,3198.8,3198.1,0.181]
[1736940615969,0.7575,3199.2,3198.2,3.0]
[1736940618271,0.7575,3199.2,3198.1,3.181]
[1736940619447,0.7575,3199.2,3198.1,6.16668801]
[1736940620277,0.7575,3199.2,3198.0,3.0]
[1736940620573,0.7575,3199.2,3198.2,0.181]
[1736940621134,0.7575,3199.0,3198.2,0.181]
[1736940621372,0.7575,3199.0,3197.9,14.48844623]
[1736940621577,0.03907776,3198.9,3198.0,0.181]
[1736940621775,0.7575,3198.8,3198.1,0.181]
[1736940623598,0.7575,3198.8,3197.9,11.87]
[1736940623799,0.7575,3198.8,3198.0,0.181]
[1736940624174,0.7965807,3198.7,3197.8,3.181]
[1736940624413,0.7965807,3198.7,3197.8,0.181]
[1736940624778,0.7965807,3198.7,3197.3,11.48844623]
[1736940625102,0.7965807,3198.7,3197.4,0.181]
[1736940625103,0.7575,3198.4,3197.4,0.181]
[1736940628373,0.7575,3198.4,3197.6,3.0]
[1736940630699,0.7575,3198.4,3197.4,0.181]
[1736940630900,0.7575,3198.4,3197.5,3.0]
[1736940631425,0.7575,3198.4,3197.5,5.61844623]
[1736940631602,0.7575,3198.4,3197.5,3.0]
[1736940631786,0.7575,3198.4,3197.8,3.0]
[1736940632221,0.7575,3198.4,3197.8,12.6479]
[1736940632723,0.7575,3199.4,3198.1,3.0]
[1736940633132,0.79657436,3199.4,3198.1,3.0]
[1736940633724,0.79657436,3199.4,3198.0,3.0]
[1736940634433,0.7575,3199.4,3198.0,3.0]
[1736940634721,0.79877478,3199.3,3198.0,3.0]
[1736940635620,0.7597,3199.3,3198.0,5.98568801]
[1736940636825,0.7597,3199.3,3198.4,3.0]
[1736940637026,0.7597,3199.3,3198.5,0.185]
[1736940637932,0.03907304,3199.2,3198.5,0.185]
[1736940638136,0.7903,3199.1,3198.5,0.185]
[1736940645251,0.7903,3199.1,3198.2,5.61844623]
[1736940645450,0.82937675,3199.0,3198.3,0.185]
[1736940646255,0.7903,3198.8,3198.3,0.185]
[1736940646453,0.38150648,3198.9,3198.3,0.185]
[1736940646454,0.82938199,3198.7,3198.3,0.185]
[1736940646767,0.7903,3198.7,3198.3,0.185]
[1736940647147,0.7903,3198.7,3198.0,0.185]
[1736940649058,0.8225,3198.5,3197.8,2.61844623]
[1736940649372,0.8225,3198.3,3197.8,2.61844623]
[1736940649537,0.03908715,3198.2,3197.8,2.61844623]
[1736940649856,0.8225,3198.1,3197.6,2.61844623]
[1736940650277,0.0390907,3198.0,3197.4,2.80344623]
[1736940650491,0.8225,3197.9,3197.4,2.61844623]
[1736940650669,2.98568801,3198.2,3197.3,3.25337499]
[1736940650670,0.8225,3197.7,3197.3,2.61844623]
[1736940650880,0.03909424,3197.6,3197.3,2.61844623]
[1736940651170,0.8225,3197.5,3197.3,2.61844623]
[1736940651539,0.8225,3197.5,3197.0,2.61844623]
[1736940652063,0.8225,3197.5,3196.8,0.185]
[1736940653443,0.8225,3197.5,3196.6,3.0]
[1736940653642,0.8225,3197.5,3196.6,3.185]
[1736940654151,0.8225,3197.5,3196.6,0.185]
[1736940656042,0.8225,3197.5,3196.6,2.80344623]
[1736940656691,0.8225,3197.5,3196.6,0.185]
[1736940657174,0.8225,3197.5,3196.6,2.80344623]
[1736940657477,0.8225,3197.5,3196.7,2.80344623]
[1736940658454,0.8225,3197.5,3196.7,0.185]
[1736940658911,0.8225,3197.5,3196.7,2.80344623]
[1736940659430,0.8225,3197.5,3196.7,2.61844623]
[1736940659572,0.8225,3197.5,3196.8,0.185]
[1736940661274,0.8225,3197.5,3196.5,3.0]
[1736940661440,0.8225,3197.5,3196.6,0.185]
[1736940665236,0.81873369,3197.5,3196.6,0.185]
[1736940666152,0.55,3197.7,3196.6,0.185]
[1736940667071,3.03910052,3197.8,3196.6,0.185]
[1736940667370,0.61987911,3197.9,3196.6,0.185]
[1736940667737,0.03909643,3197.8,3196.6,0.185]
[1736940667943,0.61987911,3197.9,3196.6,0.185]
[1736940668263,0.7594,3197.8,3196.6,0.185]
[1736940668459,0.79849644,3197.7,3196.6,0.185]
[1736940672445,0.7594,3197.7,3196.6,0.185]
[1736940673082,0.7594,3197.7,3196.7,2.98568801]
[1736940673275,0.7594,3197.5,3196.6,0.185]
[1736940674590,0.7594,3197.5,3196.7,3.76108801]
[1736940674957,3.0,3198.4,3197.3,2.98568801]
[1736940674958,0.7594,3198.4,3197.3,2.98568801]
[1736940675199,0.7594,3198.4,3197.6,2.98568801]
[1736940675356,0.7594,3198.4,3197.7,0.182]
[1736940677108,3.63056569,3198.9,3197.5,0.182]
[1736940677109,0.7691,3198.2,3197.5,0.182]
[1736940677315,0.7691,3198.3,3197.5,0.182]
[1736940677455,0.80819346,3198.2,3197.5,0.182]
[1736940679592,0.7691,3198.1,3197.5,0.182]
[1736940680294,2.98568801,3197.6,3196.5,2.61844623]
[1736940680477,2.98568801,3197.6,3196.6,0.182]
[1736940680478,0.7691,3197.4,3196.6,0.182]
[1736940680986,0.7691,3197.4,3196.6,3.182]
[1736940681489,0.7691,3197.4,3196.8,2.98568801]
[1736940682112,0.7691,3197.4,3196.8,5.98568801]
[1736940682790,0.7691,3197.4,3196.9,3.0]
[1736940682969,0.7691,3198.2,3197.0,0.7977]
[1736940683669,0.7691,3198.0,3196.9,5.61844623]
[1736940684077,0.7691,3199.0,3197.7,2.98568801]
[1736940684316,0.7691,3199.0,3197.8,0.182]
[1736940684483,0.7691,3198.8,3197.8,0.182]
[1736940684681,0.7691,3198.6,3197.8,0.182]
[1736940684893,0.7691,3198.6,3197.8,3.182]
[1736940685506,0.7691,3198.6,3198.1,3.0]
[1736940686698,0.7691,3199.5,3198.1,3.7977]
[1736940686902,0.7691,3199.5,3198.6,2.98568801]
[1736940687201,0.7691,3199.5,3198.7,0.182]
[1736940688177,0.03907118,3199.4,3198.7,0.182]
[1736940688366,0.7691,3199.3,3198.7,0.182]
[1736940690616,0.7691,3199.1,3198.7,0.182]
[1736940690781,0.80817902,3199.0,3198.3,0.182]
[1736940690979,0.55,3198.9,3198.1,2.61844623]
[1736940691181,0.80818659,3198.8,3198.1,2.61844623]
[1736940691506,0.7691,3198.8,3197.8,0.182]
[1736940692988,0.03908211,3198.7,3197.9,0.7977]
[1736940693226,0.7691,3198.8,3197.8,0.182]
[1736940693390,0.7691,3198.8,3198.1,3.0]
[1736940694075,0.7691,3198.8,3198.3,2.98568801]
[1736940694277,0.8267,3199.8,3198.3,3.77028801]
[1736940694707,0.8267,3199.6,3198.3,3.77028801]
[1736940694874,0.86577493,3199.5,3198.3,2.98568801]
[1736940697718,0.8267,3199.5,3198.3,2.98568801]
[1736940698337,0.8267,3199.5,3198.4,0.181]